bitfinex/quotes_ETHUSD_20250909
["timestamp","ask_amount","ask_price","bid_price","bid_amount"]
[1757388132621,9.88974848,4295.6,4295.5,0.2889]
[1757388132805,11.31657771,4295.6,4295.5,0.002]
[1757388132981,11.31658344,4295.6,4295.5,0.002]
[1757388133317,9.88974848,4295.6,4295.5,0.2889]
[1757388135537,9.88974848,4295.6,4295.5,0.002]
[1757388136150,10.10762344,4295.6,4295.5,0.002]
[1757388136350,10.86052344,4295.6,4295.5,0.002]
[1757388136738,11.31662344,4295.6,4295.5,0.002]
[1757388137867,11.40978611,4295.6,4295.5,0.002]
[1757388138215,10.65688611,4295.6,4295.5,0.002]
[1757388138747,10.20078611,4295.6,4295.5,0.002]
[1757388140875,9.98291115,4295.6,4295.5,0.002]
[1757388141423,10.20084829,4295.6,4295.5,0.002]
[1757388142218,10.50664829,4295.6,4295.5,0.002]
[1757388143057,10.95374829,4295.6,4295.5,0.002]
[1757388143427,11.40984829,4295.6,4295.5,0.002]
[1757388145430,11.91219836,4295.6,4295.5,0.002]
[1757388146154,11.40984829,4295.6,4295.5,0.002]
[1757388147836,11.91222706,4295.6,4295.5,0.002]
[1757388152166,11.91240812,4295.6,4295.5,0.002]
[1757388153896,7.13720812,4295.6,4295.5,0.002]
[1757388154064,10.50582935,4295.6,4295.5,0.002]
[1757388154258,11.00820812,4295.6,4295.5,0.002]
[1757388154891,10.70240812,4295.6,4295.5,0.002]
[1757388155195,11.00590812,4295.6,4295.5,0.002]
[1757388155762,11.95730812,4295.6,4295.5,0.002]
[1757388157775,11.95630812,4295.6,4295.5,0.002]
[1757388161265,14.95630812,4295.6,4295.5,0.002]
[1757388164190,14.00490812,4295.6,4295.5,0.002]
[1757388164510,14.00490812,4295.6,4295.5,0.3139]
[1757388164511,13.70140812,4295.6,4295.5,0.3139]
[1757388165494,13.70140812,4295.6,4295.5,0.002]
[1757388166077,14.48370812,4295.6,4295.5,0.002]
[1757388166270,14.00490812,4295.6,4295.5,0.002]
[1757388166671,10.13490812,4295.6,4295.5,0.002]
[1757388166871,14.00490812,4295.6,4295.5,0.002]
[1757388167873,14.47750812,4295.6,4295.5,0.002]
[1757388168111,14.25938992,4295.6,4295.5,0.002]
[1757388168272,14.47750661,4295.6,4295.5,0.002]
[1757388169983,9.49745895,4295.6,4295.5,0.3139]
[1757388170191,8.99508018,4295.6,4295.5,0.7508]
[1757388172615,8.77696349,4295.6,4295.5,0.3139]
[1757388176142,8.77596349,4295.6,4295.5,0.3139]
[1757388176822,8.77596349,4295.6,4295.5,0.7508]
[1757388177226,8.77596349,4295.6,4295.5,0.3139]
[1757388179298,4.90696349,4295.6,4295.5,0.3139]
[1757388179493,8.77596349,4295.6,4295.5,0.3139]
[1757388181508,4.90696349,4295.6,4295.5,0.3139]
[1757388181709,8.77596349,4295.6,4295.5,0.3139]
[1757388181915,8.77596349,4295.6,4295.5,0.002]
[1757388182116,9.08236349,4295.6,4295.5,0.002]
[1757388182313,9.53736349,4295.6,4295.5,0.002]
[1757388183550,10.00936349,4295.6,4295.5,0.002]
[1757388184377,18.06486805,4295.6,4295.5,0.002]
[1757388184519,18.56707402,4295.6,4295.5,0.002]
[1757388184701,18.66024038,4295.6,4295.5,0.002]
[1757388186644,18.66024038,4295.6,4295.4,1e-08]
[1757388186645,3.23601769,4295.5,4295.4,1e-08]
[1757388186805,12.48905829,4295.5,4295.4,1e-08]
[1757388187004,13.72245829,4295.5,4295.4,1e-08]
[1757388187349,16.81563312,4295.5,4295.4,1e-08]
[1757388188352,19.64163312,4295.5,4295.4,1e-08]
[1757388188648,20.09663312,4295.5,4295.4,1e-08]
[1757388188831,20.56863312,4295.5,4295.4,1e-08]
[1757388195106,19.30463312,4295.5,4295.4,1e-08]
[1757388195329,20.56863312,4295.5,4295.4,1e-08]
[1757388203177,20.5685344,4295.5,4295.4,1e-08]
[1757388216986,20.5695344,4295.5,4295.4,1e-08]
[1757388222431,15.4671344,4295.5,4295.4,0.31650001]
[1757388222570,19.3351344,4295.5,4295.4,0.31650001]
[1757388224328,19.3351344,4295.5,4295.4,1e-08]
[1757388224905,20.1317344,4295.5,4295.4,1e-08]
[1757388225098,20.6062344,4295.5,4295.4,1e-08]
[1757388230093,19.3351344,4295.5,4295.4,1e-08]
[1757388231908,20.6062344,4295.5,4295.4,1e-08]
[1757388232700,22.0042344,4295.5,4295.1,1e-08]
[1757388232903,22.0042344,4295.5,4294.5,0.002]
[1757388232904,0.792,4294.9,4294.8,1e-08]
[1757388233114,7.2052051,4294.9,4294.8,1e-08]
[1757388233314,8.00451107,4294.9,4294.8,1e-08]
[1757388233605,10.31233606,4294.9,4294.8,1e-08]
[1757388234953,10.31233606,4294.9,4294.8,0.00200001]
[1757388235315,10.3125893,4294.9,4294.8,0.00200001]
[1757388237341,17.4325893,4294.9,4294.8,0.00200001]
[1757388238720,20.4325893,4294.9,4294.8,0.00200001]
[1757388240621,19.9330893,4294.9,4294.8,0.00200001]
[1757388241753,20.4048893,4294.9,4294.8,0.00200001]
[1757388242845,22.1928893,4294.9,4294.8,0.00200001]
[1757388243300,21.7183893,4294.9,4294.8,0.00200001]
[1757388243700,12.74866431,4294.9,4294.8,0.29520001]
[1757388244004,16.11345834,4294.9,4294.8,0.29520001]
[1757388244946,17.85461657,4294.9,4294.8,0.00200001]
[1757388245108,20.85461657,4294.9,4294.8,0.00200001]
[1757388245307,23.12252454,4294.9,4294.8,0.00200001]
[1757388246346,21.88342454,4294.9,4294.8,0.00200001]
[1757388247606,18.78372454,4294.9,4294.8,0.00200001]
[1757388247811,23.12252454,4294.9,4294.8,0.00200001]
[1757388249577,24.52052454,4294.9,4294.8,0.00200001]
[1757388252262,23.58832454,4294.9,4294.8,0.00200001]
[1757388252463,24.52052454,4294.9,4294.8,0.00200001]
[1757388254470,23.28142454,4294.9,4294.8,0.00200001]
[1757388254685,18.01642454,4294.9,4294.8,0.29520001]
[1757388254895,21.88342454,4294.9,4294.8,0.29520001]
[1757388257524,21.88342454,4294.9,4294.8,0.00200001]
[1757388257676,18.01642454,4294.9,4294.8,0.00200001]
[1757388257880,21.88342454,4294.9,4294.8,0.00200001]
[1757388258295,22.65072454,4294.9,4294.8,0.00200001]
[1757388259125,23.12252454,4294.9,4294.8,0.00200001]
[1757388261753,21.88342454,4294.9,4294.8,0.29520001]
[1757388262054,9.49551657,4294.9,4294.8,1.20650001]
[1757388262349,9.49598794,4294.9,4294.8,1.20650001]
[1757388262548,9.49598794,4294.9,4294.8,0.76660001]
[1757388262754,8.70398794,4294.9,4294.8,1.20650001]
[1757388263110,4.83698794,4294.9,4294.8,1.20650001]
[1757388263455,8.99345834,4294.9,4294.8,1.20650001]
[1757388263734,9.49598794,4294.9,4294.8,1.20650001]
[1757388263934,5.62898794,4294.9,4294.8,1.20650001]
[1757388264150,9.49598794,4294.9,4294.8,1.20650001]
[1757388265544,9.49598794,4294.9,4294.8,0.76660001]
[1757388266476,8.99345834,4294.9,4294.8,0.76660001]
[1757388267798,9.49587638,4294.9,4294.8,0.76660001]
[1757388269397,9.49687638,4294.9,4294.8,0.29520001]
[1757388270374,5.12745834,4294.9,4294.8,1.20650001]
[1757388270591,4.33545834,4294.9,4294.8,1.20650001]
[1757388270791,1.789,4294.9,4294.8,1.32755001]
[1757388271010,5.655,4294.9,4294.8,1.32755001]
[1757388271969,7.98334291,4294.9,4294.8,1.32755001]
[1757388272395,7.98334291,4294.9,4294.8,1.20650001]
[1757388273117,8.77534291,4294.9,4294.8,0.00200001]
[1757388273577,8.77534291,4294.9,4294.8,0.29180001]
[1757388274871,8.77534291,4294.9,4294.8,0.00200001]
[1757388275302,10.25457303,4294.9,4294.8,0.00200001]
[1757388275621,11.51285659,4294.9,4294.8,0.00200001]
[1757388282133,11.51286445,4294.9,4294.8,0.00200001]
[1757388283838,11.51289263,4294.9,4294.8,0.00200001]
[1757388284507,18.63289263,4294.9,4294.8,0.00200001]
[1757388285037,17.37149263,4294.9,4294.8,0.00200001]
[1757388285243,13.50549263,4294.9,4294.8,0.00200001]
[1757388285536,17.37149263,4294.9,4294.8,0.00200001]
[1757388285840,17.37149263,4294.9,4294.8,0.29180001]
[1757388285841,16.11320907,4294.9,4294.8,0.29180001]
[1757388286254,12.24720907,4294.9,4294.8,0.29180001]
[1757388286412,16.11320907,4294.9,4294.8,0.00200001]
[1757388288207,16.41430907,4294.9,4294.8,0.00200001]
[1757388288457,17.37460907,4294.9,4294.8,0.00200001]
[1757388288612,19.35456398,4294.9,4294.8,0.00200001]
[1757388291339,19.8568723,4294.9,4294.8,0.00200001]
[1757388300567,22.8568723,4294.9,4294.8,0.00200001]
[1757388301099,3.12045134,4294.7,4294.6,1e-08]
[1757388301245,16.16723127,4294.7,4294.6,1e-08]
[1757388301440,20.17834756,4294.7,4294.6,1e-08]
[1757388302249,21.57634756,4294.7,4294.6,1e-08]
[1757388305292,28.69634756,4294.7,4294.6,1e-08]
[1757388305810,0.792,4294.5,4294.3,1e-08]
[1757388305987,3.12072246,4294.2,4294.1,1e-08]
[1757388306307,10.49158862,4294.2,4294.1,1e-08]
[1757388306465,10.99389694,4294.2,4294.1,1e-08]
[1757388306663,12.125309,4294.2,4294.1,1e-08]
[1757388307007,14.10526391,4294.2,4294.1,1e-08]
[1757388307676,14.10526391,4294.2,4293.8,1e-08]
[1757388307677,3.12088516,4293.9,4293.8,1e-08]
[1757388307879,17.95666509,4293.9,4293.8,1e-08]
[1757388308208,19.69987341,4293.9,4293.8,1e-08]
[1757388308363,21.96778138,4293.9,4293.8,1e-08]
[1757388309516,21.46547306,4293.9,4293.8,1e-08]
[1757388312530,22.86347306,4293.9,4293.8,1e-08]
[1757388312817,21.46547306,4293.9,4293.8,1e-08]
[1757388317131,28.58547306,4293.9,4293.8,1e-08]
[1757388321033,28.58647306,4293.9,4293.8,1e-08]
[1757388325426,29.08790757,4293.9,4293.8,1e-08]
[1757388330819,29.08790757,4293.9,4293.8,0.28910001]
[1757388330820,15.74918583,4293.9,4293.8,0.28910001]
[1757388331023,19.61518583,4293.9,4293.8,0.74930001]
[1757388331220,19.61518583,4293.9,4293.8,1.18920001]
[1757388331456,19.61518583,4293.9,4293.8,0.74930001]
[1757388331653,19.61518583,4293.9,4293.8,0.28910001]
[1757388334617,13.96118583,4293.9,4293.8,0.28910001]
[1757388334820,19.61518583,4293.9,4293.8,0.72900001]
[1757388335034,2.00686616,4293.9,4293.8,1.19360001]
[1757388335260,5.655,4293.9,4293.8,1.31316001]
[1757388335463,1.789,4293.9,4293.8,1.31316001]
[1757388335666,0.001,4294.4,4293.8,1.31316001]
[1757388335667,1.789,4294.4,4294.0,2.32882618]
[1757388335824,1.43,4294.4,4294.3,0.3107]
[1757388336191,1.43,4294.4,4294.3,3.07926823]
[1757388336403,4.579,4294.4,4294.3,3.07926823]
[1757388336542,1.43,4294.4,4294.3,3.07926823]
[1757388336884,3.902,4294.4,4294.3,3.62007193]
[1757388337445,1.314,4294.4,4294.3,3.62007193]
[1757388337750,5.179,4294.4,4294.3,3.62007193]
[1757388338547,5.18,4294.4,4294.3,3.62007193]
[1757388342148,5.18,4294.4,4294.3,1.2914037]
[1757388342888,5.18,4294.4,4294.3,0.7506]
[1757388343250,5.18,4294.4,4294.3,3.07926823]
[1757388343452,1.315,4294.4,4294.3,3.07926823]
[1757388343698,5.179,4294.4,4294.3,3.07926823]
[1757388345277,5.179,4294.4,4294.3,6.07926823]
[1757388345458,5.179,4294.4,4294.3,6.93167095]
[1757388345900,0.001,4294.4,4294.3,6.93167095]
[1757388346194,3.865,4294.4,4294.3,6.93167095]
[1757388351456,0.001,4294.4,4294.3,6.93167095]
[1757388351596,0.001,4294.4,4294.3,7.04767095]
[1757388352097,0.026,4294.8,4294.7,2.32845134]
[1757388352296,0.026,4294.8,4294.7,2.44445134]
[1757388352512,0.026,4294.8,4294.7,5.88435134]
[1757388353044,0.026,4294.8,4294.7,6.58286478]
[1757388357798,0.026,4294.8,4294.7,10.00596478]
[1757388358147,0.026,4294.8,4294.7,11.33317851]
[1757388361044,0.026,4294.8,4294.7,11.77307851]
[1757388361909,0.026,4294.8,4294.7,10.63466507]
[1757388362307,0.026,4294.8,4294.7,10.72780302]
[1757388362750,0.026,4294.8,4294.7,6.86480302]
[1757388366860,0.026,4294.8,4294.7,8.11160992]
[1757388367063,0.026,4294.8,4294.7,6.86480302]
[1757388367449,0.026,4294.8,4294.7,8.11160992]
[1757388367614,0.026,4294.8,4294.7,6.86480302]
[1757388368350,0.026,4294.8,4294.7,6.77166507]
[1757388369370,0.026,4294.8,4294.7,8.01847197]
[1757388369667,0.026,4294.8,4294.7,6.77166507]
[1757388370117,0.026,4294.8,4294.7,8.01847197]
[1757388370816,0.026,4294.8,4294.7,11.88047197]
[1757388371046,1e-08,4294.8,4294.7,11.07356507]
[1757388372657,0.001,4296.4,4295.9,2.32780092]
[1757388372856,0.001,4296.4,4296.2,2.32763837]
[1757388373058,0.001,4296.4,4296.3,5.3275842]
[1757388373427,0.001,4296.4,4296.3,6.57912686]
[1757388374384,0.001,4296.4,4296.3,5.3275842]
[1757388374785,0.001,4296.4,4296.3,6.57618329]
[1757388375150,0.001,4296.4,4296.3,5.3275842]
[1757388375343,0.001,4296.4,4296.3,6.2658914]
[1757388379468,0.001,4296.4,4296.3,6.7057914]
[1757388380980,0.001,4296.4,4296.3,6.2658914]
[1757388382322,0.001,4296.4,4296.3,10.1878914]
[1757388382514,0.4523,4296.4,4296.3,10.1878914]
[1757388382712,0.4523,4296.4,4296.3,10.3038914]
[1757388385779,0.7385,4296.4,4296.3,10.2998914]
[1757388386801,0.4523,4296.4,4296.3,10.2998914]
[1757388387242,1.2259,4296.4,4296.3,2.4435842]
[1757388389433,1.2259,4296.4,4296.3,9.3605842]
[1757388389602,0.7385,4296.4,4296.3,9.3605842]
[1757388390485,1.2259,4296.4,4296.3,9.3625842]
[1757388396508,0.001,4296.4,4296.3,9.3625842]
[1757388396706,0.001,4296.4,4296.3,10.6564707]
[1757388396941,0.7787,4296.4,4296.3,10.6564707]
[1757388399409,0.7787,4296.4,4296.3,9.3625842]
[1757388399628,1.2648,4296.4,4296.3,9.3625842]
[1757388400328,1.2648,4296.4,4296.3,10.61118329]
[1757388401262,1.2648,4296.4,4296.3,9.3625842]
[1757388409582,0.001,4296.4,4296.3,9.3625842]
[1757388409895,0.025,4296.8,4296.7,2.32736751]
[1757388410037,0.025,4296.8,4296.7,9.25464118]
[1757388410386,0.025,4296.8,4296.7,9.34736751]
[1757388412437,0.4918,4296.8,4296.7,9.34736751]
[1757388415606,0.3359,4296.8,4296.7,9.34736751]
[1757388415813,0.8027,4296.8,4296.7,10.68175849]
[1757388416311,0.4918,4296.8,4296.7,10.68175849]
[1757388417606,0.3359,4296.8,4296.7,6.77775849]
[1757388417921,0.3359,4296.8,4296.3,0.002]
[1757388417922,1.2888,4296.8,4296.3,0.002]
[1757388418294,1.2888,4296.8,4296.5,2.32746446]
[1757388418492,0.9529,4296.7,4296.6,2.32741939]
[1757388418721,1.2638,4296.7,4296.6,2.32741939]
[1757388422335,1.2638,4296.7,4296.6,2.32742168]
[1757388425710,1.2648,4296.7,4296.6,2.32742168]
[1757388433542,1.2648,4296.7,4296.5,3.0]
[1757388433747,0.9416,4296.6,4296.5,2.32743253]
[1757388434058,1.2349,4296.6,4296.5,2.32743253]
[1757388442883,1.2349,4296.6,4296.5,2.32943253]
[1757388446176,1.2349,4296.6,4296.5,5.32943253]
[1757388447584,0.2933,4296.6,4296.5,5.32943253]
[1757388447736,0.001,4296.7,4296.5,5.32943253]
[1757388447737,0.001,4296.7,4296.6,2.32742168]
[1757388447934,0.001,4296.7,4296.6,3.5800686]
[1757388448135,0.001,4296.7,4296.6,2.76732168]
[1757388448542,0.001,4296.7,4296.6,2.32742168]
[1757388450989,1e-08,4296.8,4296.7,2.32736751]
[1757388451144,0.001,4297.2,4297.1,2.32715086]
[1757388452807,0.001,4297.2,4297.1,9.21315086]
[1757388454959,0.7798,4297.2,4297.1,5.32715086]
[1757388455411,0.7798,4297.2,4297.1,7.85589392]
[1757388456117,0.4695,4297.2,4297.1,7.85589392]
[1757388456312,0.4695,4297.2,4297.1,6.60607097]
[1757388456621,0.7798,4297.2,4297.1,6.60607097]
[1757388457406,1.2671,4297.2,4297.1,5.32715086]
[1757388457588,0.7798,4297.2,4297.1,5.32715086]
[1757388461614,0.4695,4297.2,4297.1,5.32715086]
[1757388462219,0.7798,4297.2,4297.1,5.32715086]
[1757388464755,0.4695,4297.2,4297.1,5.32715086]
[1757388465098,0.7798,4297.2,4297.1,5.32715086]
[1757388465399,0.7798,4297.2,4297.1,6.61777097]
[1757388466846,0.7798,4297.2,4297.1,5.32715086]
[1757388467144,1.2671,4297.2,4297.1,2.32715086]
[1757388469715,0.4695,4297.2,4297.1,2.32715086]
[1757388470541,0.001,4297.2,4297.1,2.32715086]
[1757388472216,0.117,4297.6,4297.3,5.32701065]
[1757388472217,0.001,4297.6,4297.3,5.32701065]
[1757388472445,0.001,4297.6,4297.5,6.69127709]
[1757388472621,0.001,4297.6,4297.5,5.44293426]
[1757388472821,0.001,4297.6,4297.5,5.88283426]
[1757388473342,0.001,4297.6,4297.5,5.97590979]
[1757388473648,0.001,4297.6,4297.5,7.67006172]
[1757388474021,0.001,4297.6,4297.5,7.23016172]
[1757388475577,0.001,4297.6,4297.5,7.13708619]
[1757388478446,0.7798,4297.6,4297.5,11.02408619]
[1757388479079,0.4695,4297.6,4297.5,11.02408619]
[1757388479382,0.001,4297.6,4297.5,11.02408619]
[1757388479540,0.4695,4297.6,4297.5,11.02308619]
[1757388480579,1.2671,4297.6,4297.5,2.32693426]
[1757388480938,0.001,4298.5,4297.5,2.32693426]
[1757388480940,0.025,4299.8,4297.9,2.452]
[1757388481185,0.025,4300.8,4300.7,2.32520287]
[1757388481367,0.025,4300.8,4300.7,8.73718764]
[1757388481690,0.5,4301.4,4301.1,2.36996511]
[1757388481986,0.025,4301.8,4301.7,2.32466234]
[1757388482208,0.025,4301.8,4301.7,9.36490896]
[1757388482391,1e-08,4301.9,4301.8,5.3246083]
[1757388482573,1e-08,4301.9,4301.8,6.49133536]
[1757388483101,0.4894,4302.9,4302.7,2.32412206]
[1757388483316,0.4894,4302.9,4302.7,2.54001585]
[1757388483501,0.02,4302.9,4302.7,2.54001585]
[1757388483856,0.02,4302.9,4302.7,0.70529379]
[1757388484055,0.02,4302.9,4302.7,0.4894]
[1757388485102,0.7799,4302.8,4302.7,0.4894]
[1757388486487,0.7799,4302.8,4302.7,0.70525539]
[1757388486687,1.248,4302.8,4302.7,0.70525539]
[1757388486916,3.69886804,4302.8,4302.7,0.70525539]
[1757388487734,1.3748,4302.8,4302.7,0.70525539]
[1757388488033,1.248,4302.8,4302.7,0.70525539]
[1757388488237,3.57206804,4302.8,4302.7,0.70525539]
[1757388488604,3.57206804,4302.8,4302.7,0.21585539]
[1757388489989,2.32412856,4302.7,4302.1,3.0]
[1757388490344,2.79352856,4302.7,4302.2,0.21387164]
[1757388490549,2.32428978,4302.4,4302.3,0.21387164]
[1757388490714,2.60978978,4302.4,4302.3,0.21387164]
[1757388491048,3.54728978,4302.4,4302.3,0.21387164]
[1757388492525,3.54728978,4302.4,4301.9,0.116]
[1757388492733,0.2855,4302.4,4302.0,0.21322658]
[1757388492939,0.9375,4302.3,4302.1,0.21322658]
[1757388493137,0.4681,4302.3,4302.2,0.21322658]
[1757388493468,2.32428308,4302.5,4302.2,0.21322658]
[1757388493676,0.7549,4302.3,4301.9,3.116]
[1757388493844,0.7549,4302.3,4302.0,0.21311999]
[1757388494049,0.4694,4302.2,4302.1,0.21311999]
[1757388494449,0.7549,4302.2,4302.1,0.21311999]
[1757388494631,1.223,4302.2,4302.1,0.21311999]
[1757388495973,0.7549,4302.2,4302.1,0.21311999]
[1757388496538,0.4694,4302.2,4302.1,0.21311999]
[1757388497730,0.7549,4302.2,4302.1,0.21311999]
[1757388498477,0.001,4302.3,4302.1,0.21311999]
[1757388498750,0.001,4302.3,4302.2,0.21311999]
[1757388499344,0.7559,4302.3,4302.2,0.21311999]
[1757388499652,0.001,4302.3,4302.2,0.21311999]
[1757388499869,0.4704,4302.3,4302.2,0.21311999]
[1757388500435,0.7559,4302.3,4302.2,0.21311999]
[1757388500637,3.08023814,4302.3,4302.2,0.21311999]
[1757388500850,3.57158458,4302.3,4302.2,0.21311999]
[1757388501035,1.24724644,4302.3,4302.2,0.20645999]
[1757388501451,1.224,4302.3,4302.2,0.20645999]
[1757388502033,0.7559,4302.3,4302.2,0.20645999]
[1757388502238,0.001,4302.3,4302.2,0.20645999]
[1757388502450,0.4704,4302.3,4302.2,0.20645999]
[1757388502980,0.7559,4302.3,4302.2,0.20645999]
[1757388505286,1.224,4302.3,4302.2,0.82287759]
[1757388506189,0.7559,4302.3,4302.2,0.20645999]
[1757388506784,0.4704,4302.3,4302.2,0.20645999]
[1757388507848,0.7559,4302.3,4302.2,0.20645999]
[1757388508278,1.224,4302.3,4302.2,0.20645999]
[1757388508663,1.224,4302.3,4302.1,1.23962598]
[1757388508664,5.3324,4302.3,4302.1,1.23962598]
[1757388508990,2.3246083,4301.8,4301.7,0.82657552]
[1757388509288,2.32466234,4301.7,4301.6,0.002]
[1757388509644,2.61016234,4301.7,4301.6,0.002]
[1757388509845,3.54766234,4301.7,4301.6,1.24651813]
[1757388510387,3.54766234,4301.7,4301.6,0.002]
[1757388510587,4.55713549,4301.7,4301.6,0.002]
[1757388511887,4.08773549,4301.7,4301.6,0.83159041]
[1757388512090,4.54213549,4301.7,4301.6,0.83159041]
[1757388512713,4.54213549,4301.7,4301.6,0.002]
[1757388515083,5.33413549,4301.7,4301.6,0.002]
[1757388518971,5.33413549,4301.7,4300.8,1e-08]
[1757388518972,2.32487852,4301.3,4300.8,1e-08]
[1757388519173,3.11709474,4300.9,4300.8,1e-08]
[1757388519406,9.19579474,4300.9,4300.8,1e-08]
[1757388519614,10.13949474,4300.9,4300.8,1e-08]
[1757388519919,8.09209474,4300.9,4300.8,0.30330001]
[1757388520617,8.09209474,4300.9,4300.8,1e-08]
[1757388520911,9.13380594,4300.9,4300.8,1e-08]
[1757388522115,9.44550594,4300.9,4300.8,1e-08]
[1757388522413,9.13380594,4300.9,4300.8,1e-08]
[1757388523021,9.44550594,4300.9,4300.8,1e-08]
[1757388523518,9.66218924,4300.9,4300.8,1e-08]
[1757388524222,9.35048924,4300.9,4300.8,1e-08]
[1757388524701,9.13380594,4300.9,4300.8,1e-08]
[1757388525590,1.784,4300.9,4300.8,0.30330001]
[1757388525804,5.763,4300.9,4300.8,1e-08]
[1757388526606,5.763,4300.9,4300.8,0.30330001]
[1757388528925,5.879,4300.9,4300.8,0.30330001]
[1757388529775,6.1907,4300.9,4300.8,1e-08]
[1757388529978,8.51579474,4300.9,4300.8,1e-08]
[1757388530212,6.1907,4300.9,4300.8,1e-08]
[1757388532244,5.879,4300.9,4300.8,1e-08]
[1757388533124,6.1907,4300.9,4300.8,1e-08]
[1757388533335,5.879,4300.9,4300.8,1e-08]
[1757388534924,5.879,4300.9,4300.8,0.30330001]
[1757388535127,6.1907,4300.9,4300.8,1e-08]
[1757388535657,6.1917,4300.9,4300.8,1e-08]
[1757388536005,5.88,4300.9,4300.8,1e-08]
[1757388541909,9.43979474,4300.9,4300.8,1e-08]
[1757388543648,10.61627533,4300.9,4300.8,1e-08]
[1757388549078,1.901,4300.9,4300.8,0.28970001]
[1757388549233,5.856,4300.9,4300.8,0.28970001]
[1757388549677,5.856,4300.9,4300.8,1e-08]
[1757388549864,8.18109474,4300.9,4300.8,1e-08]
[1757388550066,1.901,4300.9,4300.8,1e-08]
[1757388550270,8.06409474,4300.9,4300.8,1e-08]
[1757388551248,5.739,4300.9,4300.8,1e-08]
[1757388552089,8.06409474,4300.9,4300.8,1e-08]
[1757388553285,5.739,4300.9,4300.8,1e-08]
[1757388553675,8.06409474,4300.9,4300.8,1e-08]
[1757388554889,5.739,4300.9,4300.8,1e-08]
[1757388555191,5.739,4300.9,4300.8,1.2447336]
[1757388556593,8.06409474,4300.9,4300.8,1.2447336]
[1757388556769,5.739,4300.9,4300.8,1.2447336]
[1757388557610,5.739,4300.9,4300.8,1.5344336]
[1757388558618,5.739,4300.9,4300.8,1.2447336]
[1757388559971,1.785,4300.9,4300.8,1.2447336]
[1757388560174,5.732,4300.9,4300.8,1.2447336]
[1757388560374,5.732,4300.9,4300.8,1.5344336]
[1757388560803,8.05709474,4300.9,4300.8,1.2447336]
[1757388561371,8.35009474,4300.9,4300.8,1.2447336]
[1757388561816,8.05709474,4300.9,4300.8,1.2447336]
[1757388562114,9.29179474,4300.9,4300.8,1.2447336]
[1757388562720,8.82189474,4300.9,4300.8,1.2447336]
[1757388563882,8.35009474,4300.9,4300.8,1.2447336]
[1757388564085,8.05709474,4300.9,4300.8,1.2447336]
[1757388564307,9.29179474,4300.9,4300.8,1.2447336]
[1757388564508,9.29179474,4300.9,4300.8,1e-08]
[1757388564720,8.29179474,4300.9,4300.8,1e-08]
[1757388567526,7.82189474,4300.9,4300.8,1e-08]
[1757388568400,5.4968,4300.9,4300.8,1e-08]
[1757388568733,7.05709474,4300.9,4300.8,1e-08]
[1757388570534,7.35009474,4300.9,4300.8,1e-08]
[1757388571330,7.04709474,4300.9,4300.8,1e-08]
[1757388571503,7.04709474,4300.9,4300.8,0.31380001]
[1757388572230,7.04709474,4300.9,4300.8,1e-08]
[1757388572888,7.34079474,4300.9,4300.8,1e-08]
[1757388573090,0.785,4300.9,4300.8,0.31380001]
[1757388573295,4.72,4300.9,4300.8,1.5585336]
[1757388574103,5.4829,4300.9,4300.8,1.2447336]
[1757388574289,5.5989,4300.9,4300.8,1.2447336]
[1757388574691,5.1277,4300.9,4300.8,1.2447336]
[1757388575408,4.834,4300.9,4300.8,1.2447336]
[1757388575903,7.15909474,4300.9,4300.8,1.2447336]
[1757388576104,7.45279474,4300.9,4300.8,1.2447336]
[1757388576319,7.92399474,4300.9,4300.8,1.2447336]
[1757388577331,8.39469474,4300.9,4300.8,1e-08]
[1757388579405,7.61069474,4300.9,4300.8,1.2447336]
[1757388586655,7.13999474,4300.9,4300.8,1.2447336]
[1757388587221,7.61069474,4300.9,4300.8,1.2447336]
[1757388588054,7.12899474,4300.9,4300.8,1.2447336]
[1757388588819,3.20699474,4300.9,4300.8,1.2447336]
[1757388589020,7.12899474,4300.9,4300.8,1.2447336]
[1757388589260,4.038,4300.9,4300.8,1.5585336]
[1757388589645,6.36309474,4300.9,4300.8,1.5585336]
[1757388590538,7.59869474,4300.9,4300.8,1.2447336]
[1757388593394,7.12799474,4300.9,4300.8,1.2447336]
[1757388594086,6.36109474,4300.9,4300.8,1.2447336]
[1757388594680,0.117,4300.9,4300.8,1.2447336]
[1757388594883,4.035,4300.9,4300.8,1.5585336]
[1757388595608,6.36009474,4300.9,4300.8,1.5585336]
[1757388596052,4.035,4300.9,4300.8,1.5585336]
[1757388596248,6.36009474,4300.9,4300.8,1.5585336]
[1757388597415,4.035,4300.9,4300.8,1.5585336]
[1757388597970,6.36009474,4300.9,4300.8,1.5585336]
[1757388598168,4.035,4300.9,4300.8,1.5585336]
[1757388598466,6.36009474,4300.9,4300.8,1.5585336]
[1757388598886,2.44209474,4300.9,4300.8,1.5585336]
[1757388599099,6.35809474,4300.9,4300.8,1.5585336]
[1757388599605,4.033,4300.9,4300.8,1.5585336]
[1757388600470,4.031,4300.9,4300.8,0.31380001]
[1757388600813,4.031,4300.9,4300.8,0.77640001]
[1757388600988,4.031,4300.9,4300.8,0.31380001]
[1757388601306,4.031,4300.9,4300.8,2.02395721]
[1757388602609,4.03,4300.9,4300.8,2.02395721]
[1757388602981,0.001,4300.9,4300.8,6.37426467]
[1757388603182,0.001,4300.9,4300.8,7.39730257]
[1757388603396,0.001,4300.9,4300.8,8.78670823]
[1757388603611,0.001,4300.9,4300.8,7.12539788]
[1757388603789,0.001,4300.9,4300.8,8.45262354]
[1757388604521,0.001,4300.9,4300.8,6.79131319]
[1757388609765,0.001,4300.9,4300.8,6.35141319]
[1757388610522,0.001,4300.9,4300.8,6.79131319]
[1757388611971,0.001,4300.9,4300.8,10.70531319]
[1757388612486,0.001,4300.9,4300.8,7.94026439]
[1757388612790,0.001,4300.9,4300.8,10.26541319]
[1757388613668,0.001,4300.9,4300.8,3.58596439]
[1757388613841,0.001,4300.9,4300.8,5.91111319]
[1757388614238,0.001,4300.9,4300.8,3.58596439]
[1757388614492,0.001,4300.9,4300.8,5.91111319]
[1757388614849,0.001,4300.9,4300.8,3.58596439]